bitfinex/quotes_ETHUSD_20260219
["timestamp","ask_amount","ask_price","bid_price","bid_amount"]
[1771515571725,0.634,1932.5,1931.6,3.01104715]
[1771515572137,1.293728,1932.4,1931.7,4.30524397]
[1771515572637,1.293728,1932.4,1931.5,1.2943087]
[1771515572791,1.293728,1932.4,1931.5,4.30535585]
[1771515573191,1.293728,1932.4,1931.6,3.01104715]
[1771515574193,4.48247757,1932.4,1931.7,0.001]
[1771515575356,3.18874957,1932.3,1931.7,0.001]
[1771515575698,1.293728,1932.4,1931.5,0.001]
[1771515575699,3.18874957,1932.1,1931.5,0.001]
[1771515575889,3.82374957,1932.0,1931.5,0.001]
[1771515576220,4.4828124,1931.9,1931.3,0.001]
[1771515577221,2.97574007,1931.8,1931.3,0.001]
[1771515578236,1.29419682,1931.7,1931.3,0.001]
[1771515579432,1.29416308,1931.8,1931.3,0.001]
[1771515580011,5.81238667,1931.9,1931.3,0.001]
[1771515580012,1.29409805,1931.9,1931.3,0.001]
[1771515580218,1.29399585,1932.0,1931.3,3.07980666]
[1771515582131,4.26973592,1932.0,1931.3,0.001]
[1771515583545,2.97574007,1931.9,1930.9,0.647]
[1771515583845,2.97574007,1931.9,1930.7,5.30564882]
[1771515584213,4.26986989,1931.8,1930.7,5.30564882]
[1771515584415,0.637,1931.7,1930.7,5.30564882]
[1771515584833,3.61274007,1931.7,1930.7,3.07880666]
[1771515585115,3.61274007,1931.7,1930.4,3.07880666]
[1771515585852,2.97574007,1931.4,1929.8,3.72580666]
[1771515586019,4.54674007,1931.3,1929.8,3.72580666]
[1771515586217,4.270339,1931.1,1930.0,3.07880666]
[1771515587522,4.270339,1931.1,1929.7,4.37434132]
[1771515587523,2.97574007,1931.0,1929.7,4.37434132]
[1771515587728,2.97574007,1930.8,1929.7,4.3743273]
[1771515587947,2.97574007,1930.8,1929.7,3.07880666]
[1771515588271,1.29486714,1930.7,1929.8,3.07880666]
[1771515588556,1.93286714,1930.7,1929.8,3.07880666]
[1771515588917,1.93286714,1930.7,1930.1,0.001]
[1771515589119,6.11246858,1930.8,1930.1,3.07980666]
[1771515589120,1.29485343,1930.8,1930.1,3.07980666]
[1771515589322,1.29479295,1930.9,1930.1,3.07980666]
[1771515589660,1.93279295,1930.9,1930.1,3.07980666]
[1771515590235,0.638,1930.9,1930.2,4.37400922]
[1771515590442,1.93273547,1930.9,1930.2,4.37400922]
[1771515591852,1.93273547,1930.9,1930.2,3.07880666]
[1771515592554,1.93273547,1930.9,1930.2,4.37398866]
[1771515593747,0.638,1930.8,1930.1,1.29626378]
[1771515593935,0.638,1930.8,1930.1,4.37507044]
[1771515594433,1.29486714,1930.7,1930.1,4.37507044]
[1771515594828,1.29439784,1931.4,1930.4,3.07880666]
[1771515595251,4.27013791,1931.4,1930.4,3.07880666]
[1771515595454,2.97574007,1931.3,1930.2,0.647]
[1771515595656,2.97574007,1931.3,1930.1,5.02207044]
[1771515596359,2.97574007,1931.1,1930.1,3.07980666]
[1771515596554,3.61474007,1931.0,1930.1,0.001]
[1771515596755,2.97574007,1931.0,1930.1,4.37507009]
[1771515596930,0.639,1930.9,1930.2,3.07880666]
[1771515598459,0.639,1931.1,1930.4,3.07880666]
[1771515600043,0.639,1931.1,1930.3,1.29513547]
[1771515600242,3.61474007,1931.1,1930.1,1.29625993]
[1771515600463,5.17829047,1931.2,1930.3,2.93972412]
[1771515600636,1.29433083,1931.5,1930.3,2.93972412]
[1771515600838,4.31367338,1931.6,1930.5,2.93972412]
[1771515601153,3.65835655,1931.5,1930.5,2.93972412]
[1771515602135,2.63168132,1931.9,1930.5,2.93972412]
[1771515602337,1.29412982,1931.8,1930.6,2.93972412]
[1771515602651,0.639,1932.0,1930.7,2.93972412]
[1771515603049,0.639,1932.0,1930.8,3.58672412]
[1771515603050,3.65835655,1932.0,1930.8,3.58672412]
[1771515604367,4.31341938,1931.9,1930.8,3.58672412]
[1771515604672,0.0011,1931.4,1930.8,4.88147832]
[1771515604851,0.0011,1931.4,1930.8,4.23447832]
[1771515605363,0.0011,1931.4,1930.8,1.2947542]
[1771515605570,0.0011,1931.4,1930.9,2.93972412]
[1771515606369,0.0011,1931.4,1930.7,1.29485586]
[1771515606565,0.0011,1931.4,1930.6,2.93972412]
[1771515606566,0.0011,1931.4,1930.6,4.88261187]
[1771515606769,3.09991189,1931.4,1930.3,3.02557957]
[1771515606970,3.73681189,1931.3,1930.3,3.02557957]
[1771515607271,3.73681189,1931.3,1930.3,0.001]
[1771515607272,3.09881189,1931.2,1930.3,0.001]
[1771515607958,0.638,1931.1,1930.3,0.001]
[1771515608478,1.29466597,1931.0,1930.3,0.001]
[1771515608679,4.39347786,1931.0,1930.3,0.001]
[1771515609479,3.09881189,1930.9,1930.3,0.001]
[1771515610666,1.29480008,1930.8,1930.3,0.001]
[1771515611463,1.29478816,1930.9,1930.3,0.001]
[1771515611850,0.639,1931.0,1930.3,3.02557957]
[1771515612183,0.639,1931.0,1930.3,0.001]
[1771515613068,1.29473302,1930.9,1930.3,0.001]
[1771515613589,4.39354491,1930.9,1930.3,0.001]
[1771515613752,4.39354491,1930.9,1930.1,0.001]
[1771515613753,3.09881189,1930.8,1930.1,0.001]
[1771515614199,3.09881189,1930.8,1930.0,0.001]
[1771515614382,3.09881189,1930.6,1930.0,0.001]
[1771515614581,4.39354491,1930.9,1930.0,1.29633317]
[1771515614781,4.39354491,1930.9,1930.0,1.29632835]
[1771515615051,1.29486714,1930.7,1930.0,0.001]
[1771515615478,3.09881189,1930.6,1929.8,0.001]
[1771515615694,3.09881189,1930.6,1929.3,3.02457957]
[1771515615695,3.09881189,1930.2,1929.3,3.02457957]
[1771515615857,0.64,1930.1,1929.3,3.02457957]
[1771515616049,3.73881189,1930.1,1929.0,3.02457957]
[1771515616255,3.09881189,1929.9,1929.0,3.02457957]
[1771515616453,3.09881189,1929.9,1928.7,4.32078317]
[1771515616716,3.09881189,1929.8,1928.7,4.32078757]
[1771515616850,0.64,1929.7,1928.8,3.02457957]
[1771515617052,1.2956053,1929.6,1928.9,1.29607548]
[1771515617284,0.64,1929.5,1928.9,1.29607548]
[1771515617454,0.64,1929.5,1928.9,3.02457957]
[1771515618398,1.93554321,1929.7,1928.9,3.02457957]
[1771515618687,0.64,1929.7,1928.9,3.02457957]
[1771515618853,1.93554106,1929.7,1928.9,3.02457957]
[1771515619361,1.9355452,1929.7,1929.0,4.32058786]
[1771515619858,0.64,1929.9,1929.1,3.02457957]
[1771515620056,1.29513547,1930.3,1929.1,3.02457957]
[1771515620255,0.64,1930.2,1929.1,3.02457957]
[1771515620465,0.933,1930.5,1929.1,3.02457957]
[1771515620466,1.29503732,1930.5,1929.1,3.02457957]
[1771515620670,1.93503732,1930.5,1929.1,3.02457957]
[1771515620898,3.09881189,1930.4,1929.1,3.02457957]
[1771515621290,1.29513547,1930.3,1929.2,4.3204535]
[1771515621464,1.29513547,1930.3,1929.3,3.02457957]
[1771515621664,3.09881189,1930.2,1929.3,3.02457957]
[1771515621893,3.73881189,1930.1,1929.2,1.29587393]
[1771515622194,0.64,1930.0,1929.2,1.29587393]
[1771515622568,3.73881189,1930.0,1929.1,1.29588979]
[1771515622782,1.29513547,1930.3,1929.2,3.02457957]
[1771515622982,0.64,1930.2,1929.2,3.02457957]
[1771515623500,1.93526101,1930.2,1929.4,3.02457957]
[1771515623869,1.93526101,1930.2,1929.1,4.32047704]
[1771515623870,3.09881189,1930.1,1929.1,4.32047704]
[1771515624071,3.09881189,1930.1,1929.1,4.3205205]
[1771515624498,3.09881189,1930.1,1929.5,0.00330963]
[1771515625400,3.09881189,1929.9,1928.9,1.29602045]
[1771515625703,0.64,1929.8,1928.9,1.29602045]
[1771515626003,0.64,1929.8,1929.0,3.02457957]
[1771515627803,5.18134715,1930.2,1929.2,3.02457957]
[1771515628024,1.93526967,1930.1,1929.2,3.02457957]
[1771515628314,3.09881189,1930.0,1929.2,3.02457957]
[1771515628485,3.09881189,1929.8,1928.9,4.32064641]
[1771515629305,4.39408156,1930.1,1929.0,3.02457957]
[1771515629513,4.67281189,1930.0,1929.0,3.02457957]
[1771515629836,1.29547103,1929.8,1929.1,1.29594111]
[1771515629982,1.29547103,1929.8,1929.0,4.32053595]
[1771515630786,0.64,1929.7,1929.0,4.32053595]
[1771515632613,1.29526967,1930.1,1929.1,3.02457957]
[1771515632785,0.64,1930.3,1929.3,3.02457957]
[1771515634511,3.09881189,1930.1,1929.2,4.96641546]
[1771515634711,0.64,1930.0,1929.3,3.02457957]
[1771515636219,1.29520256,1930.2,1929.3,3.02457957]
[1771515636419,0.64,1930.1,1929.5,3.02457957]
[1771515636889,0.64,1930.3,1929.5,3.02457957]
[1771515637311,1.29612088,1930.4,1929.5,3.02457957]
[1771515637312,0.001,1930.4,1929.5,3.02457957]
[1771515638387,0.001,1930.4,1929.6,1.2956053]
[1771515638618,0.001,1930.4,1929.7,3.6835918]
[1771515639230,1.29482646,1930.8,1929.8,3.0375918]
[1771515639785,3.03219173,1930.7,1929.6,1.2956053]
[1771515640122,3.03219173,1930.7,1929.6,3.0375918]
[1771515641015,1.29493421,1930.6,1929.7,1.29553816]
[1771515641192,1.29493421,1930.6,1929.7,4.33312996]
[1771515641193,0.64,1930.5,1929.7,4.33312996]
[1771515641394,0.64,1930.5,1929.8,3.0375918]
[1771515641924,0.641,1930.8,1929.8,3.6835918]
[1771515642991,1.29486714,1930.7,1930.0,3.0375918]
[1771515643193,4.32705887,1930.7,1929.7,4.33310034]
[1771515643393,4.32705887,1930.7,1929.7,4.97910034]
[1771515643706,4.32705887,1930.7,1929.7,1.94150854]
[1771515643911,0.641,1930.6,1929.8,3.0375918]
[1771515645396,1.29500129,1930.5,1929.9,1.2954039]
[1771515645715,1.29500129,1930.5,1929.9,4.3329957]
[1771515647313,4.32679066,1931.1,1930.0,3.0375918]
[1771515647527,0.641,1931.0,1930.2,3.0375918]
[1771515647726,1.29457667,1931.2,1930.3,3.0375918]
[1771515647901,5.17915064,1931.3,1930.3,3.0375918]
[1771515648099,1.93656486,1931.3,1930.3,3.0375918]
[1771515648796,0.642,1931.2,1930.3,3.0375918]
[1771515649512,1.29459893,1931.1,1930.4,4.33266017]
[1771515650014,1.93657631,1931.2,1930.5,3.0375918]
[1771515650800,1.93657631,1931.2,1930.4,4.33266017]
[1771515651805,0.0041,1931.3,1930.5,3.0375918]
[1771515651996,0.641,1931.2,1930.5,3.0375918]
[1771515652826,0.001,1931.1,1930.5,3.0375918]
[1771515653625,0.001,1931.1,1930.7,3.0375918]
[1771515654130,0.0041,1931.3,1930.7,3.0375918]
[1771515654712,0.0011,1931.6,1930.8,3.0375918]
[1771515654909,0.0011,1931.6,1931.0,3.0375918]
[1771515655513,0.0011,1931.6,1931.1,1.29459893]
[1771515656427,0.0011,1931.6,1930.9,1.94170604]
[1771515656801,0.0011,1931.6,1930.9,4.97929784]
[1771515657931,0.0011,1931.6,1931.0,3.0375918]
[1771515658633,0.0011,1931.6,1930.9,1.94170604]
[1771515658634,0.64,1932.2,1931.1,3.0375918]
[1771515659022,4.32596936,1932.4,1931.1,3.0375918]
[1771515659340,3.03219173,1932.3,1931.1,3.0375918]
[1771515659638,3.03219173,1932.3,1931.2,3.6855918]
[1771515659813,1.29386191,1932.2,1931.3,4.33205666]
[1771515660014,3.03219173,1932.1,1931.3,3.0375918]
[1771515660326,3.03219173,1931.8,1930.8,1.94277376]
[1771515660724,3.03219173,1931.8,1930.8,4.97668749]
[1771515661513,3.03219173,1931.8,1930.8,4.32868749]
[1771515661747,1.29419682,1931.7,1930.8,4.32868749]
[1771515661923,0.64,1931.6,1930.8,4.32868749]
[1771515662130,1.29419682,1931.7,1930.9,3.03391373]
[1771515662613,1.29418269,1931.8,1930.9,3.68191373]
[1771515662818,1.93418269,1931.8,1930.9,3.68191373]
[1771515663038,4.79480928,1931.8,1930.9,3.68191373]
[1771515663813,4.79480928,1931.8,1931.0,1.29466597]
[1771515665351,2.86062659,1931.7,1930.6,4.97680355]
[1771515665715,2.86062659,1931.7,1930.4,3.03391373]
[1771515665940,2.86062659,1931.7,1930.5,1.29500129]
[1771515665941,2.86062659,1931.5,1930.5,1.29500129]
[1771515666112,0.64,1931.4,1930.5,4.32891502]
[1771515666312,0.64,1931.4,1930.6,3.03391373]
[1771515666925,0.64,1931.5,1930.6,3.03391373]
[1771515667250,1.29426382,1931.6,1930.8,2.79539387]
[1771515667454,1.93426382,1931.6,1930.8,2.79539387]
[1771515667841,1.29426382,1931.6,1930.9,4.09012689]
[1771515668041,1.29536933,1931.6,1930.9,4.09012689]
[1771515668957,1.29536933,1931.6,1930.9,2.79539387]
[1771515669424,0.0011,1931.6,1930.9,2.79539387]
[1771515669815,1.29537069,1931.6,1931.0,1.29466597]
[1771515670246,0.0011,1931.6,1931.0,1.29466597]
[1771515670551,0.0011,1931.6,1931.0,4.09005984]
[1771515671139,0.0011,1931.6,1930.9,1.29468899]
[1771515672144,0.0011,1931.6,1930.8,5.17906091]
[1771515672442,0.0011,1931.6,1930.9,2.79539387]
[1771515674263,0.0011,1931.6,1931.0,4.09005984]
[1771515675348,0.0011,1931.6,1931.1,2.79539387]
[1771515675663,0.0011,1931.6,1930.9,1.2946863]
[1771515676030,2.79761199,1931.6,1930.8,1.29475606]
[1771515676252,2.79651199,1931.4,1930.7,1.29483822]
[1771515676452,1.29433083,1931.5,1930.7,4.09023209]
[1771515676627,1.29541399,1931.6,1930.8,2.79539387]
[1771515676822,2.79651199,1931.5,1930.8,2.79539387]
[1771515677053,2.79651199,1931.5,1930.7,1.29483822]
[1771515677649,1.29541399,1931.6,1930.8,2.79539387]
[1771515678237,0.0011,1931.6,1930.9,4.09012689]
[1771515678455,0.0011,1931.6,1931.0,2.79539387]
[1771515678843,0.0011,1931.6,1930.8,1.29476254]
[1771515679051,2.79761199,1931.6,1930.8,1.29476254]
[1771515680251,1.29433083,1931.5,1930.8,1.29476254]
[1771515680760,4.09192849,1931.6,1930.8,4.09015641]
[1771515681654,2.79651199,1931.5,1930.8,1.29476254]
[1771515682245,0.0011,1931.6,1931.0,1.29466597]
[1771515682756,0.0011,1931.6,1931.1,2.79539387]
[1771515683371,2.79761199,1931.6,1930.8,1.29475387]
[1771515683745,2.79761199,1931.6,1930.7,1.94481516]
[1771515684283,1.29433083,1931.5,1930.7,1.94481516]
[1771515684571,4.09084282,1931.5,1930.7,1.94481516]
[1771515684859,4.72884282,1931.5,1930.7,4.74020903]
[1771515685055,1.29541357,1931.6,1930.8,2.79539387]
[1771515685259,0.0011,1931.7,1930.9,2.79539387]
[1771515685462,4.09030694,1932.3,1931.0,2.79539387]
[1771515685659,2.79651199,1932.2,1931.1,3.44439387]
[1771515686266,0.638,1932.1,1931.1,3.44439387]
[1771515686463,1.29399585,1932.0,1931.3,2.79539387]
[1771515686860,2.79651199,1932.3,1931.3,2.79539387]
[1771515687043,3.43451199,1932.3,1931.3,2.79539387]
[1771515688350,1.29386191,1932.2,1931.4,1.29439784]
[1771515688673,0.639,1932.1,1931.3,7.973238]
[1771515689552,0.638,1932.2,1931.4,2.79539387]
[1771515690639,1.29386496,1932.2,1931.6,2.79539387]
[1771515690845,1.93186496,1932.2,1931.6,2.79539387]
[1771515691065,1.93186496,1932.2,1931.5,1.29433083]
[1771515691346,1.93186496,1932.2,1931.5,4.0897247]
[1771515691347,1.29386496,1932.2,1931.5,4.0897247]
[1771515691558,1.93186496,1932.2,1931.5,4.0897247]
[1771515691779,0.638,1932.2,1931.6,2.79539387]
[1771515691958,1.93186819,1932.2,1931.6,2.79539387]
[1771515692157,0.638,1932.2,1931.6,2.79539387]
[1771515692376,5.17520143,1932.3,1931.6,2.79539387]
[1771515692579,0.638,1932.3,1931.7,1.29419682]
[1771515692786,0.638,1932.3,1931.7,4.08959069]
[1771515693077,4.09026041,1932.4,1931.7,4.08959069]
[1771515693078,0.638,1932.4,1931.7,4.08959069]
[1771515694556,0.638,1932.4,1931.8,2.79539387]
[1771515694754,0.003,1932.5,1932.0,2.79539387]
[1771515694943,2.79651199,1933.1,1932.0,2.79539387]
[1771515694944,1.29336386,1933.0,1932.0,2.79539387]
[1771515695143,4.08979757,1933.1,1932.0,2.79539387]
[1771515695351,4.72782188,1933.1,1932.0,2.79539387]
[1771515695576,3.43451199,1933.1,1932.0,2.79539387]
[1771515695789,1.29639596,1932.9,1932.0,2.79539387]
[1771515696083,0.003,1932.9,1932.0,2.79539387]
[1771515696483,1.29641031,1932.9,1932.0,2.79539387]
[1771515696651,0.003,1932.9,1932.1,1.29392888]
[1771515696854,0.003,1932.9,1932.2,2.90222043]
[1771515697751,0.0011,1932.8,1932.2,2.90222043]
[1771515698446,0.0011,1932.8,1932.1,3.80378043]
[1771515698447,2.80753509,1932.8,1931.9,4.19623466]
[1771515698679,1.29352718,1932.7,1931.9,4.19623466]
[1771515698882,0.637,1932.7,1932.0,2.90222043]
[1771515699087,0.0011,1932.8,1932.0,2.90222043]
[1771515699279,1.29457863,1932.8,1932.0,2.90222043]
[1771515700172,1.93157863,1932.8,1932.0,2.90222043]
[1771515700957,1.93157863,1932.8,1932.1,1.29392888]
[1771515702196,2.80643509,1932.7,1931.8,1.94412164]
[1771515702754,2.80643509,1932.7,1931.8,4.84634207]
[1771515702987,1.29359412,1932.6,1931.8,4.84634207]
[1771515704864,1.92959412,1932.6,1931.8,4.84634207]
[1771515706083,4.73602921,1932.6,1931.8,4.84634207]
[1771515707406,3.44243509,1932.5,1931.3,2.90222043]
[1771515707560,2.80643509,1932.4,1931.2,1.29453189]
[1771515707899,2.80643509,1932.4,1931.2,4.19675232]
[1771515708199,2.80643509,1932.4,1931.2,1.29453189]
[1771515708412,1.29359412,1932.6,1931.3,2.90222043]
[1771515708765,4.10002921,1932.6,1931.3,2.90222043]
[1771515709163,2.80643509,1932.5,1931.3,2.90222043]
[1771515709376,1.293728,1932.4,1931.5,2.90222043]
[1771515709697,2.80643509,1932.3,1931.5,2.90222043]
[1771515711594,1.29386191,1932.2,1931.6,4.19648425]
[1771515712111,1.29386191,1932.2,1931.3,4.19663216]
[1771515712303,4.100297,1932.2,1931.3,4.19663216]
[1771515712502,2.80643509,1932.1,1931.3,4.19663216]
[1771515712724,2.80643509,1932.1,1931.0,4.19686657]
[1771515712903,2.80643509,1932.1,1931.1,2.90222043]
[1771515713214,0.636,1932.0,1931.5,0.001]
[1771515713774,1.29406283,1931.9,1931.5,0.001]
[1771515715111,1.93106283,1931.9,1931.5,0.001]
[1771515715408,0.638,1931.9,1931.5,0.001]
[1771515715577,5.17571481,1932.2,1931.5,2.90322043]
[1771515715779,0.638,1932.2,1931.5,4.19755126]
[1771515715985,3.44443509,1932.2,1931.5,0.001]
[1771515717395,2.80643509,1932.1,1930.9,4.19794368]
[1771515717597,2.80643509,1932.1,1931.0,2.90222043]
[1771515717800,4.10043094,1932.0,1931.1,1.29459893]
[1771515718295,2.80643509,1931.9,1931.0,4.19683579]
[1771515718491,0.638,1931.8,1931.0,4.19683579]
[1771515718690,2.80643509,1931.9,1931.0,4.19683579]
[1771515718994,0.638,1931.8,1931.1,2.90222043]
[1771515719179,2.80643509,1931.9,1931.1,2.90222043]
[1771515719384,0.638,1931.8,1931.1,2.90222043]
[1771515719812,0.638,1931.8,1930.9,5.17980472]
[1771515719813,2.80643509,1931.6,1930.9,0.001]
[1771515720912,0.638,1931.5,1930.9,0.001]
[1771515721090,3.40090471,1931.5,1930.9,0.001]
[1771515721485,0.638,1931.5,1930.9,0.001]
[1771515721791,4.05710153,1931.7,1930.9,0.001]
[1771515721993,4.05710153,1931.7,1930.9,2.80040384]
[1771515722184,0.638,1931.6,1930.9,2.80040384]
[1771515722880,3.40090471,1931.6,1930.9,2.80040384]
[1771515723520,3.40090471,1931.6,1930.9,0.001]
[1771515723684,3.40090471,1931.6,1930.8,0.001]
[1771515724085,2.76290471,1931.4,1930.8,0.001]
[1771515724288,2.76290471,1931.4,1930.5,0.001]
[1771515724690,2.76290471,1931.2,1930.5,0.001]
[1771515724916,0.639,1931.1,1930.5,0.001]
[1771515725124,3.40190471,1931.1,1930.5,0.001]
[1771515725632,2.76290471,1931.4,1930.5,0.001]
[1771515725817,1.572,1931.3,1930.5,2.80040384]
[1771515726139,1.29453189,1931.2,1930.5,4.09536641]
[1771515726510,4.05741925,1931.3,1930.5,4.09536641]
[1771515726854,0.639,1931.4,1930.6,2.7155537]
[1771515727001,3.39634735,1931.4,1930.6,2.7155537]
[1771515728331,1.93346486,1931.3,1930.6,2.7155537]
[1771515728515,1.93346486,1931.3,1930.6,4.01148304]
[1771515729128,1.93346486,1931.3,1930.7,2.7155537]
[1771515729129,0.639,1931.3,1930.7,2.7155537]
[1771515730432,1.29427039,1931.6,1930.9,2.7155537]
[1771515730610,1.29416606,1931.8,1930.9,2.7155537]
[1771515730817,1.93316606,1931.8,1930.9,2.7155537]
[1771515731126,0.639,1931.8,1930.9,2.7155537]
[1771515731534,1.29395911,1932.1,1930.9,2.7155537]
[1771515731735,0.639,1932.0,1930.9,2.7155537]
[1771515732311,0.0011,1932.2,1931.3,2.7155537]
[1771515733220,0.6391,1932.2,1931.3,2.7155537]
[1771515734417,1.93302793,1932.2,1931.5,2.7155537]
[1771515734938,0.0011,1932.2,1931.5,2.7155537]
[1771515735107,0.0011,1932.5,1931.7,2.7155537]
[1771515735645,0.0011,1932.5,1931.7,3.3635537]
[1771515736434,0.0011,1932.5,1931.9,2.7155537]
[1771515737141,0.0011,1932.5,1931.8,1.29412982]
[1771515737142,0.003,1932.9,1932.2,2.7155537]
[1771515737910,0.003,1932.9,1932.2,3.3635537]
[1771515739614,0.003,1932.9,1932.4,2.7155537]
[1771515740215,2.76034735,1932.9,1932.2,0.648]
[1771515740416,2.76034735,1932.9,1932.0,4.00954955]
[1771515740633,2.76034735,1932.9,1932.0,2.7155537]
[1771515741656,1.29346026,1932.8,1932.0,4.00950106]
[1771515742038,1.29346026,1932.8,1932.0,2.7155537]
[1771515742222,0.003,1932.9,1932.1,2.7155537]
[1771515742743,0.0011,1932.8,1932.1,2.7155537]
[1771515743757,0.0011,1932.8,1932.3,2.7155537]
[1771515744744,0.0011,1933.1,1932.3,3.3625537]
[1771515745618,0.0011,1933.1,1932.4,4.0092817]
[1771515745822,0.0011,1933.1,1932.5,2.7155537]
[1771515746137,0.0083273,1933.4,1932.5,2.7155537]
[1771515746847,1.30138786,1933.4,1932.5,2.7155537]
[1771515747540,2.75734735,1933.3,1932.4,1.293728]
[1771515747745,4.68453998,1933.2,1932.3,5.17491202]
[1771515748250,4.68453998,1933.2,1932.2,4.00936717]
[1771515748645,4.68453998,1933.2,1932.3,2.7155537]
[1771515748842,2.75734735,1933.1,1932.3,2.7155537]
[1771515749153,2.75734735,1933.0,1932.1,1.29389217]
[1771515749723,4.05074069,1932.9,1932.1,1.29389217]
[1771515754155,0.634,1932.8,1932.1,1.29389217]
[1771515755029,1.29352718,1932.7,1932.1,1.29389217]
[1771515755229,2.75734735,1932.6,1931.5,4.00988453]
[1771515755449,2.75734735,1932.4,1931.3,7.89333211]
[1771515755657,3.39134735,1932.3,1931.4,2.7155537]
[1771515755855,2.75734735,1932.6,1932.0,0.001]
[1771515756028,1.566,1932.5,1932.0,0.001]
[1771515756659,2.76161821,1932.4,1932.0,0.001]
[1771515756954,2.76161821,1932.4,1931.8,0.001]
[1771515757165,2.76161821,1932.2,1931.8,0.001]
[1771515757962,0.635,1932.1,1931.8,0.001]
[1771515758150,2.76161821,1932.1,1931.1,1.29455959]
[1771515758458,3.39661821,1932.1,1931.2,2.83923429]
[1771515758858,3.39661821,1932.1,1931.1,1.29455959]
[1771515759456,2.76161821,1931.9,1931.0,5.178475]
[1771515760165,2.76161821,1931.8,1930.7,4.7800743]
[1771515760329,3.39661821,1931.7,1930.7,4.7800743]
[1771515761260,3.39661821,1931.7,1930.8,2.83923429]
[1771515761460,1.29426382,1931.6,1930.9,1.29473302]
[1771515761664,1.29426382,1931.6,1930.9,4.13396731]
[1771515761833,4.05588203,1931.6,1930.7,4.13407309]
[1771515762029,1.29426382,1931.6,1930.7,4.13407309]
[1771515762262,2.76161821,1931.5,1930.7,4.13407309]
[1771515762458,2.76161821,1931.5,1930.6,0.001]
[1771515762663,2.76161821,1931.5,1930.6,1.29592589]
[1771515762865,2.76161821,1931.5,1930.6,1.29593031]
[1771515763062,2.76161821,1931.5,1930.6,0.001]
[1771515763455,2.76161821,1931.3,1930.6,0.001]
[1771515763657,3.39661821,1931.3,1930.6,0.001]
[1771515764639,2.76161821,1931.2,1930.5,0.001]
[1771515764842,2.76161821,1931.1,1930.3,0.001]
[1771515765478,2.76161821,1930.9,1930.3,0.001]
[1771515765680,3.39661821,1930.8,1930.3,0.001]
[1771515766907,0.635,1930.8,1930.3,0.001]
[1771515767377,0.635,1930.9,1930.3,0.001]
[1771515767754,1.29480008,1930.8,1930.3,0.001]
[1771515769476,0.636,1931.1,1930.3,2.84023429]
[1771515769675,1.29466597,1931.0,1930.3,2.84023429]
[1771515769885,2.76161821,1930.9,1930.3,0.001]
[1771515770046,3.39761821,1930.9,1930.3,0.001]
[1771515771975,1.29480008,1930.8,1930.3,0.001]
[1771515772177,1.29477886,1930.9,1930.3,2.84023429]
[1771515772482,14.85812694,1931.6,1930.3,3.48523429]
[1771515772483,0.637,1931.3,1930.3,3.48523429]
[1771515772647,3.39861821,1931.3,1930.3,3.48523429]
[1771515774051,1.29453189,1931.2,1930.4,1.29506837]
[1771515774262,1.29453189,1931.2,1930.4,4.13430266]
[1771515776473,1.29453189,1931.2,1930.5,2.83923429]
[1771515777487,1.93151131,1931.3,1930.5,2.83923429]
[1771515778275,1.93151131,1931.3,1930.6,1.29493421]
[1771515778578,1.93151131,1931.3,1930.7,2.83923429]
[1771515780254,2.76161821,1931.2,1930.3,4.78031956]
[1771515780479,2.76161821,1931.2,1930.4,2.83923429]
[1771515780679,1.29451131,1931.3,1930.4,2.83923429]
[1771515780877,0.637,1931.3,1930.4,2.83923429]
[1771515782287,1.9315037,1931.3,1930.6,2.75176267]
[1771515782783,1.29445395,1931.4,1930.6,2.75176267]
[1771515783162,3.92332211,1931.4,1930.6,2.75176267]
[1771515783364,2.62886816,1931.3,1930.4,1.29502327]
[1771515784587,3.92340005,1931.2,1930.4,1.29502327]
[1771515784785,0.637,1931.1,1930.4,1.29502327]
[1771515785085,0.637,1931.1,1930.4,4.04678594]
[1771515785285,1.29407892,1931.9,1930.6,2.75176267]
[1771515785488,1.29392888,1932.1,1930.7,3.39676267]
[1771515786305,0.636,1932.1,1930.9,2.75176267]
[1771515786461,0.636,1932.1,1931.1,2.8196292]
[1771515786661,0.0011,1932.2,1931.3,2.8196292]
[1771515786865,1.29496841,1932.2,1931.3,2.8196292]
[1771515787166,1.29496438,1932.2,1931.3,2.8196292]
[1771515787370,0.0011,1932.5,1931.5,2.8196292]
[1771515788374,1.29477017,1932.5,1931.5,2.8196292]
[1771515788579,0.0011,1932.0,1931.7,2.8196292]
[1771515790165,0.0011,1932.3,1931.7,2.8196292]
[1771515790412,0.0011,1932.9,1931.8,2.8196292]
[1771515790694,0.0011,1932.9,1932.0,2.8196292]
[1771515792861,0.0011,1932.9,1932.2,2.8196292]
[1771515793292,0.0011,1932.9,1932.3,2.8196292]
[1771515794316,0.00839625,1933.1,1932.3,2.8196292]
[1771515794483,0.00839625,1933.1,1932.4,2.8196292]
[1771515794668,0.634,1933.5,1932.5,3.4646292]
[1771515794867,0.634,1933.5,1932.7,2.8196292]
[1771515795486,2.71623982,1933.7,1932.7,2.8196292]
[1771515795688,1.29270353,1934.0,1932.7,2.8196292]
[1771515795889,2.71623982,1933.9,1932.7,2.8196292]
[1771515797393,1.29279139,1933.8,1932.8,1.29346026]
[1771515797581,2.71623982,1933.7,1932.8,1.29346026]
[1771515797784,3.34923982,1933.6,1932.8,1.29346026]
[1771515797978,2.71623982,1933.5,1932.6,2.8196292]
[1771515798170,2.71623982,1933.5,1932.4,1.293728]
[1771515798367,2.71623982,1933.3,1932.3,4.11339099]
[1771515799091,2.71623982,1933.3,1932.2,1.29381552]
[1771515799600,5.57443245,1933.2,1932.2,1.29381552]
[1771515800391,2.71623982,1933.1,1931.9,1.29403439]
[1771515800701,3.11874195,1933.1,1931.9,1.29403439]
[1771515800910,2.71623982,1933.1,1931.9,1.29403439]
[1771515801105,2.71623982,1933.1,1931.8,1.29409005]
[1771515801409,2.71623982,1932.9,1931.9,2.8196292]
[1771515801587,1.29346026,1932.8,1932.0,1.29399585]
[1771515801921,4.00970008,1932.8,1931.9,4.11364641]
[1771515802400,0.633,1932.7,1931.9,4.11364641]
[1771515802812,4.00970008,1932.8,1931.9,4.11364641]
[1771515802982,0.633,1932.6,1931.9,4.11364641]
[1771515803582,1.29366106,1932.5,1931.9,4.11364641]
[1771515804200,1.92666106,1932.5,1931.7,1.29415576]
[1771515804516,2.71623982,1932.3,1931.2,1.2944873]
[1771515804808,2.71623982,1932.3,1931.1,4.11418792]
[1771515805592,2.71623982,1932.1,1931.1,4.11418792]